Body,Body Name,Date,TransNo,Amount � (Excl VAT),Supplier name,Description,Expense Area,Expense Type,Expense Code,
http://opendatacommunities.org/id/london-borough-council/sutton,London Borough of Sutton,24/03/2018,1253355,22.59 , AMAZON EU,TOYS & EQUIPMENT,Peoples Services Directorate,Education Equipment,F009,
http://opendatacommunities.org/id/london-borough-council/sutton,London Borough of Sutton,20/03/2018,1253355,99.75 , SAINSBURYS 2331,SAINSBURYS SHOP,Peoples Services Directorate,Provisions - General,F150,
http://opendatacommunities.org/id/london-borough-council/sutton,London Borough of Sutton,28/02/2018,1253355,18.26 , ASDA SUPERSTORE,GROCERIES,Peoples Services Directorate,Provisions - General,F150,
http://opendatacommunities.org/id/london-borough-council/sutton,London Borough of Sutton,06/03/2018,1253355,99.61 , SAINSBURYS TO YOU 0052,SAINSBURYS SHOP,Peoples Services Directorate,Refreshments,F155,
http://opendatacommunities.org/id/london-borough-council/sutton,London Borough of Sutton,17/03/2018,1253355,20.00 , OYSTER BUS AUTOTOP,OYSTER TOP UP,Peoples Services Directorate,Travelling and Subsistence Allowances,A530,
http://opendatacommunities.org/id/london-borough-council/sutton,London Borough of Sutton,17/03/2018,1253355,20.00 , OYSTER AUTOTOPUP,OYSTER TOP UP,Peoples Services Directorate,Travelling and Subsistence Allowances,A530,
http://opendatacommunities.org/id/london-borough-council/sutton,London Borough of Sutton,16/03/2018,1253355,20.00 , OYSTER AUTOTOPUP,OYSTER TOP UP,Peoples Services Directorate,Travelling and Subsistence Allowances,A530,
http://opendatacommunities.org/id/london-borough-council/sutton,London Borough of Sutton,16/03/2018,1253355,20.00 , OYSTER AUTOTOPUP,OYSTER CARD TOP UP,Peoples Services Directorate,Travelling and Subsistence Allowances,A530,
http://opendatacommunities.org/id/london-borough-council/sutton,London Borough of Sutton,16/03/2018,1253355,10.00 , LBSUTTON,LC BIRTH CERTIFICATE,Peoples Services Directorate,Personal Requisites,F106,
http://opendatacommunities.org/id/london-borough-council/sutton,London Borough of Sutton,26/02/2018,1253355,147.00 , TVLICENSING.CO.UK,TV LICENCE ET,Peoples Services Directorate,Set Up Costs - Children Leaving Care,H336,
http://opendatacommunities.org/id/london-borough-council/sutton,London Borough of Sutton,12/03/2018,1253355,83.94 , WWW.ARGOS.CO.UK,HOUSE HOLD APPLIANCES PURCHASED FOR YOUN PERSON WITHIN THE LEAVING CARE TEAM.,Peoples Services Directorate,Set Up Costs - Children Leaving Care,H336,
http://opendatacommunities.org/id/london-borough-council/sutton,London Borough of Sutton,20/03/2018,1253355,(150.00), WWW.CSKILLS.ORG,REFUND TRAINING LW,Peoples Services Directorate,Education Allowance,H321,
http://opendatacommunities.org/id/london-borough-council/sutton,London Borough of Sutton,22/03/2018,1253355,722.50 , SUTTON APPLIANCES,SETTING UP BM,Peoples Services Directorate,Set Up Costs - Children Leaving Care,H336,
http://opendatacommunities.org/id/london-borough-council/sutton,London Borough of Sutton,21/03/2018,1253355,352.29 , TRAVELODGE,TRAVELODGE - TC,Peoples Services Directorate,Accommodation - Bed and Breakfast,H202,
http://opendatacommunities.org/id/london-borough-council/sutton,London Borough of Sutton,08/03/2018,1253355,385.62 , TRAVELODGE,EMERGENCY ACCOMADATION FOR CLIENT WITHIN THE RAS TEAM.,Peoples Services Directorate,Accommodation - Bed and Breakfast,H202,
http://opendatacommunities.org/id/london-borough-council/sutton,London Borough of Sutton,01/03/2018,1253355,385.62 , TRAVELODGE,462.75 - H301 0310 9999 - KINGSTON TRAVEL LODGE TC,Peoples Services Directorate,Client Care/Assistance,H301,
http://opendatacommunities.org/id/london-borough-council/sutton,London Borough of Sutton,24/03/2018,1253355,20.00 , OYSTER BUS AUTOTOP,OYSTER TOP UP FOR LAC TEAM.,Peoples Services Directorate,Travelling and Subsistence Allowances,A530,
http://opendatacommunities.org/id/london-borough-council/sutton,London Borough of Sutton,18/03/2018,1253355,20.00 , OYSTER AUTOTOPUP,OYSTER TOP UP FOR LAC TEAM.,Peoples Services Directorate,Travelling and Subsistence Allowances,A530,
http://opendatacommunities.org/id/london-borough-council/sutton,London Borough of Sutton,15/03/2018,1253355,20.00 , OYSTER AUTOTOPUP,OYSTER TOP UP FOR LAC TEAM,Peoples Services Directorate,Travelling and Subsistence Allowances,A530,
http://opendatacommunities.org/id/london-borough-council/sutton,London Borough of Sutton,09/03/2018,1253355,20.00 , OYSTER AUTOTOPUP,AUTO TOP UP FOR OYSTER CARD FOR LAC TEAM.,Peoples Services Directorate,Travelling and Subsistence Allowances,A530,
http://opendatacommunities.org/id/london-borough-council/sutton,London Borough of Sutton,28/02/2018,1253355,20.00 , OYSTER BUS AUTOTOP,OYSTER AUTO TOP UP,Peoples Services Directorate,Travelling and Subsistence Allowances,A530,
http://opendatacommunities.org/id/london-borough-council/sutton,London Borough of Sutton,25/03/2018,1253355,20.00 , OYSTER AUTOTOPUP,OYSTER TOP UP,Peoples Services Directorate,Travelling and Subsistence Allowances,A530,
http://opendatacommunities.org/id/london-borough-council/sutton,London Borough of Sutton,24/03/2018,1253355,20.00 , OYSTER BUS AUTOTOP,OYSTER TOP UP,Peoples Services Directorate,Travelling and Subsistence Allowances,A530,
http://opendatacommunities.org/id/london-borough-council/sutton,London Borough of Sutton,04/03/2018,1253355,20.00 , OYSTER BUS AUTOTOP,OYSTER TOP UP,Peoples Services Directorate,Travelling and Subsistence Allowances,A530,
http://opendatacommunities.org/id/london-borough-council/sutton,London Borough of Sutton,02/03/2018,1253355,20.00 , OYSTER AUTOTOPUP,OYSTER TOP UP,Peoples Services Directorate,Travelling and Subsistence Allowances,A530,
http://opendatacommunities.org/id/london-borough-council/sutton,London Borough of Sutton,22/03/2018,1253355,20.00 , OYSTER AUTOTOPUP,OYSTER TOP UP FOR LAC TEAM.,Peoples Services Directorate,Recruitment Expenses,A531,
http://opendatacommunities.org/id/london-borough-council/sutton,London Borough of Sutton,22/03/2018,1253355,16.67 , LBSUTTON,20.00 - F106 0311 9999 - BIRTH CERT LB SUTTON FOR LUIGI.PDF,Peoples Services Directorate,Personal Requisites,F106,
http://opendatacommunities.org/id/london-borough-council/sutton,London Borough of Sutton,20/03/2018,1253355,10.00 , HAMPSHIRE COUNTY COUNC,BIRTH CERT HAMPSHIRE,Peoples Services Directorate,Personal Requisites,F106,
http://opendatacommunities.org/id/london-borough-council/sutton,London Borough of Sutton,20/03/2018,1253355,10.00 , LBSUTTON,BIRTH CERT,Peoples Services Directorate,Personal Requisites,F106,
http://opendatacommunities.org/id/london-borough-council/sutton,London Borough of Sutton,20/03/2018,1253355,10.00 , LBSUTTON,BIRTH CERT,Peoples Services Directorate,Personal Requisites,F106,
http://opendatacommunities.org/id/london-borough-council/sutton,London Borough of Sutton,20/03/2018,1253355,10.00 , LBSUTTON,BIRTH CERT,Peoples Services Directorate,Personal Requisites,F106,
http://opendatacommunities.org/id/london-borough-council/sutton,London Borough of Sutton,26/02/2018,1253355,45.00 , HERTFORDSHIRE COUNTY C,BIRTH CERTIFICATES X3,Peoples Services Directorate,Personal Requisites,F106,
http://opendatacommunities.org/id/london-borough-council/sutton,London Borough of Sutton,26/02/2018,1253355,45.00 , HERTFORDSHIRE COUNTY C,BIRTH CERTIFICATES X 3,Peoples Services Directorate,Personal Requisites,F106,
http://opendatacommunities.org/id/london-borough-council/sutton,London Borough of Sutton,09/03/2018,1253355,46.00 , HM PASSPORT OFFICE,LOOKED AFTER CHILD URGENT  PASSPORT APPLICATION FOR THE LAC TEAM,Peoples Services Directorate,Personal Requisites,F106,
http://opendatacommunities.org/id/london-borough-council/sutton,London Borough of Sutton,09/03/2018,1253355,46.00 , HM PASSPORT OFFICE,LOOKED AFTER CHILD URGENT  PASSPORT APPLICATION FOR THE LAC TEAM,Peoples Services Directorate,Personal Requisites,F106,
http://opendatacommunities.org/id/london-borough-council/sutton,London Borough of Sutton,26/02/2018,1253355,147.00 , POST OFFICE COUNTER,PASSPORT APPLICATION FOR LAC CHILD,Peoples Services Directorate,Payments Under the Child Care Act 1980,H210,
http://opendatacommunities.org/id/london-borough-council/sutton,London Borough of Sutton,27/02/2018,1253355,(133.90), TRAINLINE.COM LTD,REFUND FOR MONTHLY PASS NOT USED - CB,Peoples Services Directorate,C.C.A Travel & Subsistance,H212,
http://opendatacommunities.org/id/london-borough-council/sutton,London Borough of Sutton,27/02/2018,1253355,111.58 , TRAINLINE.COM LTD,MONTHLY TRAVELCARD,Peoples Services Directorate,C.C.A Travel & Subsistance,H212,
http://opendatacommunities.org/id/london-borough-council/sutton,London Borough of Sutton,07/03/2018,1253355,65.83 , RETALLACKRESORT.CO,ACCOMMODATION FOR STAFF,Peoples Services Directorate,Conferences - Travel and Subsistence,A526,
http://opendatacommunities.org/id/london-borough-council/sutton,London Borough of Sutton,07/03/2018,1253355,132.48 , FLYBE.COM B0VBNE       0,FLIGHT TO NEWQUAY,Peoples Services Directorate,Travelling and Subsistence Allowances,A530,
http://opendatacommunities.org/id/london-borough-council/sutton,London Borough of Sutton,14/03/2018,1253355,20.00 , OYSTER AUTOTOPUP,OYSTER TOP UP FOR COURT TEAM,Peoples Services Directorate,Travelling and Subsistence Allowances,A530,
http://opendatacommunities.org/id/london-borough-council/sutton,London Borough of Sutton,02/03/2018,1253355,20.00 , OYSTER BUS AUTOTOP,OYSTER AUTO TOP UP,Peoples Services Directorate,Travelling and Subsistence Allowances,A530,
http://opendatacommunities.org/id/london-borough-council/sutton,London Borough of Sutton,22/03/2018,1253355,20.00 , OYSTER BUS AUTOTOP,OYSTER TOP UP,Peoples Services Directorate,Travelling and Subsistence Allowances,A530,
http://opendatacommunities.org/id/london-borough-council/sutton,London Borough of Sutton,22/03/2018,1253355,20.00 , OYSTER AUTOTOPUP,OYSTER TOP UP,Peoples Services Directorate,Travelling and Subsistence Allowances,A530,
http://opendatacommunities.org/id/london-borough-council/sutton,London Borough of Sutton,11/03/2018,1253355,20.00 , OYSTER BUS AUTOTOP,OYSTER TOP UP,Peoples Services Directorate,Travelling and Subsistence Allowances,A530,
http://opendatacommunities.org/id/london-borough-council/sutton,London Borough of Sutton,01/03/2018,1253355,51.40 , NATIONAL EXPRESS LIMIT,CLIENT TRAIN JOURNEY,Peoples Services Directorate,Travelling and Subsistence Allowances,A530,
http://opendatacommunities.org/id/london-borough-council/sutton,London Borough of Sutton,01/03/2018,1253355,19.00 , NATIONAL EXPRESS LIMIT,TRAIN JOURNEY,Peoples Services Directorate,Travelling and Subsistence Allowances,A530,
http://opendatacommunities.org/id/london-borough-council/sutton,London Borough of Sutton,21/03/2018,1253355,47.50 , NATIONAL EXPRESS LIMIT,TRAVEL FOR VB,Peoples Services Directorate,Hired Peoples Transport (Children),E072,
http://opendatacommunities.org/id/london-borough-council/sutton,London Borough of Sutton,01/03/2018,1253355,42.83 , NATIONAL EXPRESS LIMIT,TICKET FOR VB,Peoples Services Directorate,Hired Peoples Transport (Children),E072,
http://opendatacommunities.org/id/london-borough-council/sutton,London Borough of Sutton,01/03/2018,1253355,14.00 , NATIONAL EXPRESS LIMIT,TICKET FOR VB,Peoples Services Directorate,Hired Peoples Transport (Children),E072,
http://opendatacommunities.org/id/london-borough-council/sutton,London Borough of Sutton,22/03/2018,1253355,30.83 , WANDSWORTH COUNCIL,BIRTH CERT - WANDSWORTH,Peoples Services Directorate,Personal Requisites,F106,
http://opendatacommunities.org/id/london-borough-council/sutton,London Borough of Sutton,27/02/2018,1253355,10.00 , LBSUTTON,BIRTH CERT PURCHASE FOR FSCP TEAM,Peoples Services Directorate,Personal Requisites,F106,
http://opendatacommunities.org/id/london-borough-council/sutton,London Borough of Sutton,27/02/2018,1253355,10.00 , LBSUTTON,BIRTH CERT PURCHASE FOR FSCP TEAM,Peoples Services Directorate,Personal Requisites,F106,
http://opendatacommunities.org/id/london-borough-council/sutton,London Borough of Sutton,27/02/2018,1253355,10.00 , LBSUTTON,BIRTH CERT PURCHASE FOR FSCP TEAM,Peoples Services Directorate,Personal Requisites,F106,
http://opendatacommunities.org/id/london-borough-council/sutton,London Borough of Sutton,27/02/2018,1253355,10.00 , LBSUTTON,BIRTH CERT PURCHASE FOR FSCP TEAM,Peoples Services Directorate,Personal Requisites,F106,
http://opendatacommunities.org/id/london-borough-council/sutton,London Borough of Sutton,16/03/2018,1253355,42.83 , NATIONAL EXPRESS LIMIT,TRAVEL VB,Peoples Services Directorate,C.C.A Travel & Subsistance,H212,
http://opendatacommunities.org/id/london-borough-council/sutton,London Borough of Sutton,16/03/2018,1253355,47.50 , NATIONAL EXPRESS LIMIT,TRAVEL VB,Peoples Services Directorate,C.C.A Travel & Subsistance,H212,
http://opendatacommunities.org/id/london-borough-council/sutton,London Borough of Sutton,16/03/2018,1253355,47.50 , NATIONAL EXPRESS LIMIT,TRAVEL,Peoples Services Directorate,C.C.A Travel & Subsistance,H212,
http://opendatacommunities.org/id/london-borough-council/sutton,London Borough of Sutton,16/03/2018,1253355,47.50 , NATIONAL EXPRESS LIMIT,TRAVEL VB,Peoples Services Directorate,C.C.A Travel & Subsistance,H212,
http://opendatacommunities.org/id/london-borough-council/sutton,London Borough of Sutton,08/03/2018,1253355,40.50 , NATIONAL EXPRESS LIMIT,TICKET FOR VB,Peoples Services Directorate,C.C.A Travel & Subsistance,H212,
http://opendatacommunities.org/id/london-borough-council/sutton,London Borough of Sutton,08/03/2018,1253355,47.50 , NATIONAL EXPRESS LIMIT,TICKET FOR VB,Peoples Services Directorate,C.C.A Travel & Subsistance,H212,
http://opendatacommunities.org/id/london-borough-council/sutton,London Borough of Sutton,15/03/2018,1253355,398.12 , TRAVELODGE,ACCOMMODATION- TC NRPF,Peoples Services Directorate,C.C.A Rent & Utilities,H211,
http://opendatacommunities.org/id/london-borough-council/sutton,London Borough of Sutton,22/03/2018,1253355,8.33 , LBSUTTON,10.00 - F106 0318 9999 - BIRTH CERT FOR SC - RED EAST.PDF,Peoples Services Directorate,Personal Requisites,F106,
http://opendatacommunities.org/id/london-borough-council/sutton,London Borough of Sutton,19/03/2018,1253355,58.75 , POST OFFICE COUNTER,PASSPORT APPLICATION FOR A CHILD WITHIN RED EAST LOCALITY TEAM.,Peoples Services Directorate,Personal Requisites,F106,
http://opendatacommunities.org/id/london-borough-council/sutton,London Borough of Sutton,09/03/2018,1253355,162.88 , WWW.ARGOS.CO.UK,HOME SUPPLIES PURCHASED FOR CLIENT IN THE RED EAST LOCALITY TEAM,Peoples Services Directorate,Payments Under the Child Care Act 1980,H210,
http://opendatacommunities.org/id/london-borough-council/sutton,London Borough of Sutton,15/03/2018,1253355,44.17 , NATIONAL EXPRESS LIMIT,53.00 - H212 0312 9999 - NATIONAL EXPRESS TICKET VB,Peoples Services Directorate,C.C.A Travel & Subsistance,H212,
http://opendatacommunities.org/id/london-borough-council/sutton,London Borough of Sutton,22/03/2018,1253355,8.33 , LBSUTTON,10.00 - F106 0321 9999 - BIRTH CERT FOR LH,Peoples Services Directorate,Personal Requisites,F106,
http://opendatacommunities.org/id/london-borough-council/sutton,London Borough of Sutton,23/03/2018,1253355,7.71 , GRO HM PASSPORT OFFICE,9.25 - F106 0323 9999 - BIRTH CERT - CG,Peoples Services Directorate,Accommodation - Bed and Breakfast,H202,
http://opendatacommunities.org/id/london-borough-council/sutton,London Borough of Sutton,15/03/2018,1253355,230.00 , HOLIDAY INNS,ROOM BOOKING FOR INDEPENDENT CHAIR OF CHILDRENS SAFEGUARDING BOARD,Peoples Services Directorate,Conferences - Fees,A525,
http://opendatacommunities.org/id/london-borough-council/sutton,London Borough of Sutton,14/03/2018,1253355,230.00 , HOLIDAY INNS,276.00 - A525 0331 9999 - HOLIDAY INN CD,Peoples Services Directorate,Conferences - Fees,A525,
http://opendatacommunities.org/id/london-borough-council/sutton,London Borough of Sutton,16/03/2018,1253355,76.50 , CROYDON PARK HOTEL REC,HOTEL BOOKING FOR MD ON 15 MARCH 2018 FOR ONE NIGHT TO ATTEND INQUEST,Peoples Services Directorate,Travelling and Subsistence Allowances,A530,
http://opendatacommunities.org/id/london-borough-council/sutton,London Borough of Sutton,16/03/2018,1253355,76.50 , CROYDON PARK HOTEL REC,HOTEL BOOKING FOR CD FOR 15TH MARCH 1 NIGHT TO ATTEND INQUEST,Peoples Services Directorate,Travelling and Subsistence Allowances,A530,
http://opendatacommunities.org/id/london-borough-council/sutton,London Borough of Sutton,14/03/2018,1253355,189.10 , CROYDON PARK HOTEL REC,HOTEL BOOKING FOR CD ON 12TH MARCH FOR 2 NIGHTS TO ATTEND INQUEST.,Peoples Services Directorate,Travelling and Subsistence Allowances,A530,
http://opendatacommunities.org/id/london-borough-council/sutton,London Borough of Sutton,13/03/2018,1253355,75.55 , CROYDON PARK HOTEL REC,HOTEL BOOKING FOR MD FOR 12TH MARCH 2018 - ATTENDANCE AT INQUEST,Peoples Services Directorate,Travelling and Subsistence Allowances,A530,
http://opendatacommunities.org/id/london-borough-council/sutton,London Borough of Sutton,09/03/2018,1253355,13.50 , WWW.WIGHTLINK.CO.UK,16.20 - A530 0311 9999 - WIGHT LINK FERRIES_.20 - A530 0311 9999 - WIGHT LINK FERRIES_.20 - A530 0311 9999 - WIGHT LINK FERRIES_JPEG.JPG,Peoples Services Directorate,Travelling and Subsistence Allowances,A530,
http://opendatacommunities.org/id/london-borough-council/sutton,London Borough of Sutton,19/03/2018,1253355,153.00 , CROYDON PARK HOTEL REC,HOTEL BOOKING FOR CD ON 18TH MARCH 2018 FOR TWO NIGHTS TO ATTEND INQUEST,Peoples Services Directorate,Travelling and Subsistence Allowances,A530,
http://opendatacommunities.org/id/london-borough-council/sutton,London Borough of Sutton,22/03/2018,1253355,166.67 , HOLIDAY INN EXPRESS CR,HOLIDAY INN BOOKING FOR LCSB CHAIRS,Peoples Services Directorate,Hired Peoples Transport (Children),E072,
http://opendatacommunities.org/id/london-borough-council/sutton,London Borough of Sutton,21/03/2018,1253355,149.17 , CROYDON PARK HOTEL REC,HOTEL FOR LCSB,Peoples Services Directorate,Hired Peoples Transport (Children),E072,
http://opendatacommunities.org/id/london-borough-council/sutton,London Borough of Sutton,21/03/2018,1253355,149.17 , CROYDON PARK HOTEL REC,HOTEL FOR LCSB,Peoples Services Directorate,Hired Peoples Transport (Children),E072,
http://opendatacommunities.org/id/london-borough-council/sutton,London Borough of Sutton,20/03/2018,1253355,67.71 , CROYDON PARK HOTEL F&B,HOTEL FOR LSCB - MD,Peoples Services Directorate,Accommodation - Bed and Breakfast,H202,
http://opendatacommunities.org/id/london-borough-council/sutton,London Borough of Sutton,12/03/2018,1253355,12.74 , AMAZON EU,EQUITMENT PURCHASED FOR SUTTON FAMILY CENTRE,Peoples Services Directorate,Equipment including Meters,D520,
http://opendatacommunities.org/id/london-borough-council/sutton,London Borough of Sutton,22/03/2018,1253355,17.49 , TESCO-SELLER_IST_1_240,TESCO ORDER FOR SFC CONTACTS,Peoples Services Directorate,Provisions - General,F150,
http://opendatacommunities.org/id/london-borough-council/sutton,London Borough of Sutton,22/03/2018,1253355,7.49 , TESCO-SELLER_IST_1_240,TESCO ORDER FOR SFC CONTACTS,Peoples Services Directorate,Provisions - General,F150,
http://opendatacommunities.org/id/london-borough-council/sutton,London Borough of Sutton,13/03/2018,1253355,44.43 , AMAZON UK MARKETPLACE,SUPPLIES BOUGHT FOR SUTTON FAMILY CENTRE.,Peoples Services Directorate,Provisions - General,F150,
http://opendatacommunities.org/id/london-borough-council/sutton,London Borough of Sutton,02/03/2018,1253355,38.52 , TESCO STORES 5999,SERVICE SUPPLIES PURCHASED FOR SUTTON FAMILY CENTRE,Peoples Services Directorate,General Office Expenses,F235,
http://opendatacommunities.org/id/london-borough-council/sutton,London Borough of Sutton,13/03/2018,1253355,150.00 , TESCO STORE 3235,X3 GIFT CARDS PURCHASED FOR FAMILY GROUP CONFERENCES WITHIN FAMILIES MATTERS FOR THE FGC'S CO ORDINATORS .,Peoples Services Directorate,Provisions - General,F150,
http://opendatacommunities.org/id/london-borough-council/sutton,London Borough of Sutton,16/03/2018,1253355,477.92 , TRAVELODGE,EMEGENY ACCOMADATION FOR A CLIENT WITHIN THE ADULTS TEAM.,Peoples Services Directorate,Accommodation - Supported Living,H201,
http://opendatacommunities.org/id/london-borough-council/sutton,London Borough of Sutton,23/03/2018,1253355,712.08 , TRAVELODGE,854.50 - H202 0357 9999 - TRAVELODGE GPCR #629.PDF,Peoples Services Directorate,Accommodation - Bed and Breakfast,H202,
http://opendatacommunities.org/id/london-borough-council/sutton,London Borough of Sutton,12/03/2018,1253355,507.08 , TRAVELODGE,EMERGENCY ACCOMADATION FOR CLIENT WITHIN THE FAMILY MATTERS TEAM.,Peoples Services Directorate,C.C.A Rent & Utilities,H211,
http://opendatacommunities.org/id/london-borough-council/sutton,London Borough of Sutton,02/03/2018,1253355,45.52 , PAYPAL  KIRWINMACLE,54.63 - F001 0361 6033 - KIRWIN MACLEAN ASSC - BOOKS,Peoples Services Directorate,Books,F006,
http://opendatacommunities.org/id/london-borough-council/sutton,London Borough of Sutton,06/03/2018,1253355,27.07 , AMAZON UK MARKETPLACE,13.98 32.49 - F106 0361 9999 - AMAZON ORDER,Peoples Services Directorate,Personal Requisites,F106,
http://opendatacommunities.org/id/london-borough-council/sutton,London Borough of Sutton,04/03/2018,1253355,11.65 , AMAZON UK MARKETPLACE,13.98 32.49 - F106 0361 9999 - AMAZON ORDER,Peoples Services Directorate,Personal Requisites,F106,
http://opendatacommunities.org/id/london-borough-council/sutton,London Borough of Sutton,02/03/2018,1253355,100.00 , EB  NATIONAL AMHP LEAD,CONFERENCE TICKETS FEES,Peoples Services Directorate,Conferences - Fees,A525,
http://opendatacommunities.org/id/london-borough-council/sutton,London Borough of Sutton,27/02/2018,1253355,19.17 , STK SHUTTERSTOCK.COM,23.00 SHUTTERSTOCK F269 0363 9999,Peoples Services Directorate,LAC - Education,F269,
http://opendatacommunities.org/id/london-borough-council/sutton,London Borough of Sutton,19/03/2018,1253355,26.98 , VISTAPRINT,VISTAPRINT ITEMS REQUESTED BY ZH,Peoples Services Directorate,LAC - Education,F269,
http://opendatacommunities.org/id/london-borough-council/sutton,London Borough of Sutton,20/03/2018,1253355,70.83 , NATP,27.03.2018 - MANAGING SIBLINGS WORKSHOP,Peoples Services Directorate,Training - Course Fees,A520,
http://opendatacommunities.org/id/london-borough-council/sutton,London Borough of Sutton,21/03/2018,1253355,377.44 , WWW.ARGOS.CO.UK,ARGOS DELIVERY FOR CWD,Peoples Services Directorate,Children Assessments,G329,
http://opendatacommunities.org/id/london-borough-council/sutton,London Borough of Sutton,21/03/2018,1253355,418.22 , WWW.ARGOS.CO.UK,ARGOS DELIVERY FOR CWD,Peoples Services Directorate,Children Assessments,G329,
http://opendatacommunities.org/id/london-borough-council/sutton,London Borough of Sutton,15/03/2018,1253355,55.00 , SM1 PRINT STUDIO,FLYERS,Peoples Services Directorate,Materials - General,F100,
http://opendatacommunities.org/id/london-borough-council/sutton,London Borough of Sutton,28/02/2018,1253355,25.65 , TRAINLINE,ST PANCREAS TO KEMSLEY RTN FOR PEP - LR,Peoples Services Directorate,Staff Travelling Expenses,E130,
http://opendatacommunities.org/id/london-borough-council/sutton,London Borough of Sutton,08/03/2018,1253355,13.00 , COMPANIES HOUSE,PAYMENT TO REGISTER WITH COMPANY HOUSE,"Environment, Housing & Regeneration Directorate",Fees - Other,F299,
http://opendatacommunities.org/id/london-borough-council/sutton,London Borough of Sutton,02/03/2018,1253355,159.60 , WWW.NGS.CO.UK/SHOP,ROCK SALT FOR CAR PARKS,"Environment, Housing & Regeneration Directorate",Other-Materials,F115,
http://opendatacommunities.org/id/london-borough-council/sutton,London Borough of Sutton,02/03/2018,1253355,159.60 , WWW.NGS.CO.UK/SHOP,ROCK SALT FOR CAR PARKS,"Environment, Housing & Regeneration Directorate",Other-Materials,F115,
http://opendatacommunities.org/id/london-borough-council/sutton,London Borough of Sutton,11/03/2018,1253355,61.19 , AMAZON UK MARKETPLACE,LIBRARY ORDER FROM AMAZON:  LAPTOP CASE,Chief Executive's Directorate,Repairs to Administrative Equipment,F030,
http://opendatacommunities.org/id/london-borough-council/sutton,London Borough of Sutton,07/03/2018,1253355,34.97 , AMAZON UK MARKETPLACE,LIBRARY AMASON ORDER:  LAPTOP CASE,Chief Executive's Directorate,Repairs to Administrative Equipment,F030,
http://opendatacommunities.org/id/london-borough-council/sutton,London Borough of Sutton,07/03/2018,1253355,195.14 , AMAZON UK MARKETPLACE,LIBRARY ORDER:  MAINS CHARGER; SAMSUNG CASE; USB ADAPTOR; BARCODE SCANNERS; WALKIE TALKIES,Chief Executive's Directorate,Repairs to Administrative Equipment,F030,
http://opendatacommunities.org/id/london-borough-council/sutton,London Borough of Sutton,06/03/2018,1253355,5.99 , AMAZON UK MARKETPLACE,LIBRARY ORDER FROM AMAZON:  STYLUS PENS,Chief Executive's Directorate,Repairs to Administrative Equipment,F030,
http://opendatacommunities.org/id/london-borough-council/sutton,London Borough of Sutton,16/03/2018,1253355,10.00 , ALAMY.COM LIMITED,HERITAGE PRINT,Chief Executive's Directorate,Repairs to Administrative Equipment,F030,
http://opendatacommunities.org/id/london-borough-council/sutton,London Borough of Sutton,16/03/2018,1253355,298.75 , BRITISH PATHE,SASHES,Chief Executive's Directorate,Repairs to Administrative Equipment,F030,
http://opendatacommunities.org/id/london-borough-council/sutton,London Borough of Sutton,16/03/2018,1253355,108.70 , FROSTS,HERITAGE PRINT,Chief Executive's Directorate,Repairs to Administrative Equipment,F030,
http://opendatacommunities.org/id/london-borough-council/sutton,London Borough of Sutton,10/03/2018,1253355,26.63 , AMAZON UK MARKETPLACE,PERSONAL ALARMS FOR LONE WORKERS,Chief Executive's Directorate,Other Services,F340,
http://opendatacommunities.org/id/london-borough-council/sutton,London Borough of Sutton,09/03/2018,1253355,200.68 , AMAZON UK MARKETPLACE,PERSONAL ALARMS FOR LONE WORKERS,Chief Executive's Directorate,Other Services,F340,
http://opendatacommunities.org/id/london-borough-council/sutton,London Borough of Sutton,08/03/2018,1253355,18.07 , AMAZON UK MARKETPLACE,PERSONAL ALARMS FOR LONE WORKERS,Chief Executive's Directorate,Other Services,F340,
http://opendatacommunities.org/id/london-borough-council/sutton,London Borough of Sutton,23/03/2018,1253355,267.00 , NATARO,CURTAIN CLEANING,Resources Directorate,General Office Expenses,F235,
http://opendatacommunities.org/id/london-borough-council/sutton,London Borough of Sutton,27/02/2018,1253355,140.00 , WEST DEAN COLLEGE ACCO,TRAINING COURSE FOR INTERN AS PART OF HERITAGE LOTTERY FUND PROJECT,Chief Executive's Directorate,Training - Course Fees,A520,
http://opendatacommunities.org/id/london-borough-council/sutton,London Borough of Sutton,08/03/2018,1253355,50.00 , ALAMY.COM LIMITED,IMAGE COPYRIGHTS FOR EXHIBITIONS AT WHITEHALL HISTORIC HOUSE,Chief Executive's Directorate,Other Services,F340,
http://opendatacommunities.org/id/london-borough-council/sutton,London Borough of Sutton,12/03/2018,1253355,22.05 , PHOTOBOX LIMITED,IMAGES FOR EXHIBITION AT HONEYWOOD MUSEUM,Chief Executive's Directorate,Arts Programme,F306,
http://opendatacommunities.org/id/london-borough-council/sutton,London Borough of Sutton,07/03/2018,1253355,13.94 , LINKEDIN-393 8670573,LINKED IN ADVERT,HRA,Staff Advertising,A500,
http://opendatacommunities.org/id/london-borough-council/sutton,London Borough of Sutton,23/03/2018,1253355,20.00 , OYSTER AUTOTOPUP,TOP UP FOR OYSTERCARD,HRA,General Office Expenses,F235,
http://opendatacommunities.org/id/london-borough-council/sutton,London Borough of Sutton,11/03/2018,1253355,20.00 , OYSTER AUTOTOPUP,OYSTER CARD TOP UP FOR EH&R APPROVED OYSTER,HRA,Advertising/Publicity (non Staff),F240,
http://opendatacommunities.org/id/london-borough-council/sutton,London Borough of Sutton,10/03/2018,1253355,20.00 , OYSTER AUTOTOPUP,OYSTER CARD TOP UP FOR EH&R APPROVED OYSTER,HRA,Advertising/Publicity (non Staff),F240,
http://opendatacommunities.org/id/london-borough-council/sutton,London Borough of Sutton,07/03/2018,1253355,10.00 , OYSTER RENEW WEB,OYSTER CARD TOP UP FOR EH&R APPROVED OYSTER,HRA,Advertising/Publicity (non Staff),F240,
http://opendatacommunities.org/id/london-borough-council/sutton,London Borough of Sutton,27/02/2018,1253355,54.50 , TRAINLINE,TRAIN TICKETS FOR JC ON 14TH AND 15TH MARCH 2018,Chief Executive's Directorate,Training - Travel and Subsistence,A521,
http://opendatacommunities.org/id/london-borough-council/sutton,London Borough of Sutton,26/02/2018,1253355,11.65 , CLOCK TOWER CARS,TAXI,Chief Executive's Directorate,Training - Travel and Subsistence,A521,
http://opendatacommunities.org/id/london-borough-council/sutton,London Borough of Sutton,15/03/2018,1253355,103.50 , TRAINLINE,TRAIN TICKETS FOR CHIEF EXECUTIVE TO COVENTRY TO ATTEND A CONFERENCE 22.03.18 & 23.03.18,Chief Executive's Directorate,Travelling and Subsistence Allowances,A530,
http://opendatacommunities.org/id/london-borough-council/sutton,London Borough of Sutton,14/03/2018,1253355,9.60 , CLOCK TOWER CARS,TAXI FOR CHIEF EXECUTIVE TO ATTEND A WORKSHOP ON 14.03.18,Chief Executive's Directorate,Travelling and Subsistence Allowances,A530,
http://opendatacommunities.org/id/london-borough-council/sutton,London Borough of Sutton,14/03/2018,1253355,7.00 , CLOCK TOWER CARS,TAXI FOR CHIEF EXECUTIVE ON 14.03.18 TO ATTEND WORKSHOP,Chief Executive's Directorate,Travelling and Subsistence Allowances,A530,
http://opendatacommunities.org/id/london-borough-council/sutton,London Borough of Sutton,27/02/2018,1253355,(7.00), CLOCK TOWER CARS,REFUND ON JOURNEY FOR JC,Chief Executive's Directorate,Travelling and Subsistence Allowances,A530,
http://opendatacommunities.org/id/london-borough-council/sutton,London Borough of Sutton,19/03/2018,1253355,9.60 , CLOCK TOWER CARS,CAB BOOKING FOR NB,Chief Executive's Directorate,Travelling and Subsistence Allowances,A530,
http://opendatacommunities.org/id/london-borough-council/sutton,London Borough of Sutton,19/03/2018,1253355,7.00 , CLOCK TOWER CARS,CAB BOOKING FOR NB,Chief Executive's Directorate,Travelling and Subsistence Allowances,A530,
http://opendatacommunities.org/id/london-borough-council/sutton,London Borough of Sutton,19/03/2018,1253355,8.40 , CLOCK TOWER CARS,CAB BOOKING FOR NB,Chief Executive's Directorate,Travelling and Subsistence Allowances,A530,
http://opendatacommunities.org/id/london-borough-council/sutton,London Borough of Sutton,19/03/2018,1253355,8.00 , CLOCK TOWER CARS,CAB BOOKING FOR NB,Chief Executive's Directorate,Travelling and Subsistence Allowances,A530,
http://opendatacommunities.org/id/london-borough-council/sutton,London Borough of Sutton,18/03/2018,1253355,20.00 , OYSTER BUS AUTOTOP,TEAM OYSTER,Chief Executive's Directorate,Travelling and Subsistence Allowances,A530,
http://opendatacommunities.org/id/london-borough-council/sutton,London Borough of Sutton,16/03/2018,1253355,20.00 , OYSTER AUTOTOPUP,TEAM OYSTER,Chief Executive's Directorate,Travelling and Subsistence Allowances,A530,
http://opendatacommunities.org/id/london-borough-council/sutton,London Borough of Sutton,14/03/2018,1253355,10.00 , OYSTER RENEW WEB,TEAM OYSTER,Chief Executive's Directorate,Travelling and Subsistence Allowances,A530,
http://opendatacommunities.org/id/london-borough-council/sutton,London Borough of Sutton,14/03/2018,1253355,10.00 , OYSTER RENEW WEB,TEAM OYSTER,Chief Executive's Directorate,Travelling and Subsistence Allowances,A530,
http://opendatacommunities.org/id/london-borough-council/sutton,London Borough of Sutton,08/03/2018,1253355,18.50 , EAST MIDLANDS TRAINS,TEAM OYSTER,Chief Executive's Directorate,Travelling and Subsistence Allowances,A530,
http://opendatacommunities.org/id/london-borough-council/sutton,London Borough of Sutton,05/03/2018,1253355,(10.00), OYSTER RENEW WEB,TEAM OYSTER,Chief Executive's Directorate,Travelling and Subsistence Allowances,A530,
http://opendatacommunities.org/id/london-borough-council/sutton,London Borough of Sutton,05/03/2018,1253355,(10.00), OYSTER RENEW WEB,TRAIN TRAVEL,Chief Executive's Directorate,Travelling and Subsistence Allowances,A530,
http://opendatacommunities.org/id/london-borough-council/sutton,London Borough of Sutton,26/02/2018,1253355,10.00 , OYSTER RENEW WEB,TEAM OYSTER,Chief Executive's Directorate,Travelling and Subsistence Allowances,A530,
http://opendatacommunities.org/id/london-borough-council/sutton,London Borough of Sutton,26/02/2018,1253355,10.00 , OYSTER RENEW WEB,TEAM OYSTER,Chief Executive's Directorate,Travelling and Subsistence Allowances,A530,
http://opendatacommunities.org/id/london-borough-council/sutton,London Borough of Sutton,15/03/2018,1253355,6.91 , MAILCHIMP    MONTHLY,WEB HOSTING,Chief Executive's Directorate,Fees - Computer Software,F384,
http://opendatacommunities.org/id/london-borough-council/sutton,London Borough of Sutton,14/03/2018,1253355,251.31 , MAILCHIMP    MONTHLY,WEB HOSTING,Chief Executive's Directorate,Fees - Computer Software,F384,
http://opendatacommunities.org/id/london-borough-council/sutton,London Borough of Sutton,28/02/2018,1253355,20.00 , OYSTER AUTOTOPUP,OYSTER TOP UP FOR CLLR,Resources Directorate,Members Expenses - Travel and Subsistence,F401,
http://opendatacommunities.org/id/london-borough-council/sutton,London Borough of Sutton,24/03/2018,1253355,20.00 , OYSTER BUS AUTOTOP,OYSTER TOP UP FOR CLLR,Resources Directorate,Members Expenses - Travel and Subsistence,F401,
http://opendatacommunities.org/id/london-borough-council/sutton,London Borough of Sutton,23/03/2018,1253355,20.00 , OYSTER BUS AUTOSET,AUTO TOP UP PAYMENT FOR CLLR ,Resources Directorate,Members Expenses - Travel and Subsistence,F401,
http://opendatacommunities.org/id/london-borough-council/sutton,London Borough of Sutton,03/03/2018,1253355,7.26 , AMAZON UK MARKETPLACE,GREEN SCREEN EQUIPMENT FOR COMMS,"Environment, Housing & Regeneration Directorate",Other Equipment - Purchase,F015,
http://opendatacommunities.org/id/london-borough-council/sutton,London Borough of Sutton,02/03/2018,1253355,44.47 , AMAZON UK MARKETPLACE,GREEN SCREEN EQUIPMENT FOR COMMS,"Environment, Housing & Regeneration Directorate",Other Equipment - Purchase,F015,
http://opendatacommunities.org/id/london-borough-council/sutton,London Borough of Sutton,02/03/2018,1253355,19.99 , AMAZON UK MARKETPLACE,GREEN SCREEN EQUIPMENT FOR COMMS,"Environment, Housing & Regeneration Directorate",Other Equipment - Purchase,F015,
http://opendatacommunities.org/id/london-borough-council/sutton,London Borough of Sutton,05/03/2018,1253355,6.00 , LCN.COM LTD,INBOUND DOMAIN TRANSFER - SUTONLIFECENTRE.ORG,"Environment, Housing & Regeneration Directorate",Fees - Other,F299,
http://opendatacommunities.org/id/london-borough-council/sutton,London Borough of Sutton,01/03/2018,1253355,65.33 , O2 UK,IT PERIPHERALS WS,"Environment, Housing & Regeneration Directorate",Purchase of IT Equipment,F380,
http://opendatacommunities.org/id/london-borough-council/sutton,London Borough of Sutton,01/03/2018,1253355,83.33 , MAPLIN SUTTON SM1,HDMI CABLE FOR WS,"Environment, Housing & Regeneration Directorate",Purchase of IT Equipment,F380,
http://opendatacommunities.org/id/london-borough-council/sutton,London Borough of Sutton,23/03/2018,1253355,20.00 , OYSTER AUTOTOPUP,OYSTER TOP UP FOR GERALD ALMEROTH - 23.03.18,Resources Directorate,Travelling and Subsistence Allowances,A530,
http://opendatacommunities.org/id/london-borough-council/sutton,London Borough of Sutton,17/03/2018,1253355,20.00 , OYSTER AUTOTOPUP,17.03.18 - OYSTER TOP UP FOR GA,Resources Directorate,Travelling and Subsistence Allowances,A530,
http://opendatacommunities.org/id/london-borough-council/sutton,London Borough of Sutton,16/03/2018,1253355,14.40 , CLOCK TOWER CARS,GERALD ALMEROTH TAXI ON 16TH MARCH 2018 TO CROYDON COUNCIL,Resources Directorate,Travelling and Subsistence Allowances,A530,
http://opendatacommunities.org/id/london-borough-council/sutton,London Borough of Sutton,23/03/2018,1253355,426.60 , WWW.ARGOS.CO.UK,"PURCHASE OF DOUBLE MATTRESS, ELECTRIC COOKER & FRIDGE FREEZER FOR CRISIS GRANT",Resources Directorate,Grants,F473,
http://opendatacommunities.org/id/london-borough-council/sutton,London Borough of Sutton,14/03/2018,1253355,401.61 , WWW.ARGOS.CO.UK,PURCHASE OF DOUBLE DIVAN AND ELECTRIC COOKER FOR CRISIS LOAN,Resources Directorate,Grants,F473,
http://opendatacommunities.org/id/london-borough-council/sutton,London Borough of Sutton,15/03/2018,1253355,30.00 , WWW.GOV.UK,3 X PROBATE CERTIFICATES,Resources Directorate,General Office Expenses,F235,
http://opendatacommunities.org/id/london-borough-council/sutton,London Borough of Sutton,15/03/2018,1253355,51.92 , MARKS&SPENCER PLC,PURCHASE OF FOOD AND DRINKS FOR CSE ASSESSMENT LUNCH,Resources Directorate,General Office Expenses,F235,
http://opendatacommunities.org/id/london-borough-council/sutton,London Borough of Sutton,15/03/2018,1253355,41.00 , INTERFLORA BRITISH UNI,FLOWERS FOR A CUSTOMER 35.00 PLUS 6.00 DELIVERY,Resources Directorate,Miscellaneous Expenses,F620,
http://opendatacommunities.org/id/london-borough-council/sutton,London Borough of Sutton,06/03/2018,1253355,4.16 , AMAZON UK MARKETPLACE,PLASTIC MAILING BAGS TO RETURN VALUABLE DOCUMENTS FOR REVS & BENS,Resources Directorate,Printing - General,F215,
http://opendatacommunities.org/id/london-borough-council/sutton,London Borough of Sutton,14/03/2018,1253355,18.12 , WM MORRISONS,PURCHASE OF FOOD AND DRINKS FOR CSE ASSESSMENT LUNCH,Resources Directorate,General Office Expenses,F235,
http://opendatacommunities.org/id/london-borough-council/sutton,London Borough of Sutton,16/03/2018,1253355,(61.50), WWW.VEOLIA.COM,GARDEN WASTE COLLECTION ONLINE PAYMENT TEST REFUND,Resources Directorate,General Office Expenses,F235,
http://opendatacommunities.org/id/london-borough-council/sutton,London Borough of Sutton,16/03/2018,1253355,(61.50), WWW.VEOLIA.COM,BULKY WASTE COLLECTION ONLINE PAYMENT TEST REFUND,Resources Directorate,General Office Expenses,F235,
http://opendatacommunities.org/id/london-borough-council/sutton,London Borough of Sutton,14/03/2018,1253355,61.50 , WWW.VEOLIA.COM,GARDEN WASTE COLLECTION ONLINE PAYMENT TEST,Resources Directorate,General Office Expenses,F235,
http://opendatacommunities.org/id/london-borough-council/sutton,London Borough of Sutton,14/03/2018,1253355,61.50 , WWW.VEOLIA.COM,BULKY WASTE COLLECTION ONLINE PAYMENT TEST,Resources Directorate,General Office Expenses,F235,
http://opendatacommunities.org/id/london-borough-council/sutton,London Borough of Sutton,16/03/2018,1253355,938.75 , TRAVELODGE,EMEGENY ACCOMADATION FOR A CLIENT WITHIN THE ADULTS TEAM.,Peoples Services Directorate,Accommodation - Supported Living,H201,
http://opendatacommunities.org/id/london-borough-council/sutton,London Borough of Sutton,14/03/2018,1253355,20.00 , OYSTER AUTOTOPUP,OYSTER TOP UP,Peoples Services Directorate,Travelling and Subsistence Allowances,A530,
http://opendatacommunities.org/id/london-borough-council/sutton,London Borough of Sutton,28/02/2018,1253355,782.67 , TRAVELODGE,939.20 - H301 6423 9999 - KINGSTON TRAVELODGE BOOKING FOR SF,Peoples Services Directorate,Accommodation - Bed and Breakfast,H202,
http://opendatacommunities.org/id/london-borough-council/sutton,London Borough of Sutton,18/03/2018,1253355,22.49 , AMAZON UK MARKETPLACE,IT EQUIPMENT,Peoples Services Directorate,Purchase of IT Equipment,F380,
http://opendatacommunities.org/id/london-borough-council/sutton,London Borough of Sutton,16/03/2018,1253355,34.99 , AMAZON UK MARKETPLACE,IT EQUIPMENT,Peoples Services Directorate,Purchase of IT Equipment,F380,
